bitfinex/quotes_ETHUSD_20241215
["timestamp","ask_amount","ask_price","bid_price","bid_amount"]
[1734233405800,0.19255376,3877.6,3877.2,1.92264298]
[1734233406187,0.19255376,3877.5,3877.2,1.92264298]
[1734233406395,0.19255376,3877.4,3877.2,1.92264298]
[1734233406568,0.19255376,3877.3,3877.2,1.92264298]
[1734233406767,0.19255376,3877.3,3877.2,2.1344748]
[1734233408303,3.09297664,3877.7,3877.2,2.1344748]
[1734233408506,0.19254251,3877.6,3877.2,2.1344748]
[1734233408665,3.09297664,3877.7,3877.2,2.1344748]
[1734233408876,0.19254381,3877.6,3877.2,2.1344748]
[1734233409066,0.19254381,3877.5,3877.2,2.1344748]
[1734233409268,3.09297664,3877.7,3877.2,2.1344748]
[1734233409503,0.19254583,3877.6,3877.2,2.1344748]
[1734233409708,0.19254583,3877.5,3877.2,2.1344748]
[1734233409905,0.82693601,3878.4,3877.2,2.1344748]
[1734233410070,4.99508667,3878.3,3877.2,1.92264298]
[1734233410404,2.5788,3877.8,3877.2,1.92264298]
[1734233410964,0.82693601,3878.4,3877.2,1.92264298]
[1734233411166,1.22854846,3878.3,3877.2,1.92264298]
[1734233411407,2.57882,3877.8,3877.2,1.92264298]
[1734233411572,4.18440733,3878.5,3877.6,1.06429018]
[1734233411819,2.57844,3878.3,3877.8,1.87119018]
[1734233416450,0.51754233,3878.2,3877.8,1.87119018]
[1734233417532,0.51754233,3878.2,3877.9,0.06147709]
[1734233417728,2.5786,3878.1,3877.9,0.06147709]
[1734233430580,0.7736,3878.0,3877.9,0.06147709]
[1734233430980,2.57871,3877.9,3876.9,0.7637]
[1734233431254,0.7736,3877.8,3877.0,0.95412562]
[1734233431489,0.7736,3877.8,3877.0,0.06103104]
[1734233431705,0.7736,3877.8,3877.0,1.12532122]
[1734233431706,2.579,3877.5,3877.0,1.12532122]
[1734233431906,2.579,3877.5,3877.1,0.8931246]
[1734233432193,2.579,3877.5,3877.1,0.95415222]
[1734233432399,2.579,3877.5,3877.1,0.06102762]
[1734233432562,0.7736,3877.8,3877.1,0.06102762]
[1734233432756,2.57887,3877.7,3877.1,0.06102762]
[1734233434382,0.7736,3877.8,3877.1,0.06102762]
[1734233434583,2.57892,3877.6,3877.1,0.06102762]
[1734233436422,2.57892,3877.6,3877.1,0.38771501]
[1734233438231,2.57892,3877.6,3877.1,0.06102762]
[1734233441440,2.57892,3877.6,3877.2,0.06128614]
[1734233441636,2.57892,3877.6,3876.9,0.7637]
[1734233441866,2.57914,3877.3,3877.0,0.06129297]
[1734233442065,2.57919,3877.2,3877.0,0.06129297]
[1734233442244,2.57919,3877.2,3876.7,0.7637]
[1734233442443,2.57935,3877.0,3876.8,2.29559302]
[1734233442648,2.57935,3877.0,3876.8,0.06134637]
[1734233442952,2.57935,3877.0,3876.5,1.08086724]
[1734233443143,2.57935,3877.0,3876.9,0.0613546]
[1734233443339,2.57935,3877.0,3876.5,1.08086724]
[1734233443565,2.57935,3877.0,3876.9,0.0613546]
[1734233443869,2.57935,3877.0,3876.9,0.06152342]
[1734233444069,2.57935,3877.0,3876.5,1.08086724]
[1734233444265,2.57935,3877.0,3876.6,2.29558891]
[1734233444445,2.57935,3877.0,3876.7,0.8936221]
[1734233444795,2.57935,3877.0,3876.8,0.06152683]
[1734233445204,2.57935,3877.0,3876.4,2.90885742]
[1734233445465,2.57935,3877.0,3876.5,2.68573166]
[1734233445664,2.57935,3877.0,3876.6,2.29520592]
[1734233445877,2.57935,3877.0,3876.7,0.8934689]
[1734233446169,2.57935,3877.0,3876.8,0.06152683]
[1734233446549,2.57935,3877.0,3876.4,2.90885742]
[1734233446729,2.57935,3877.0,3876.9,0.059791]
[1734233446929,2.57935,3877.0,3876.4,2.90885742]
[1734233447152,2.57935,3877.0,3876.9,0.059791]
[1734233447357,2.57935,3877.0,3876.4,2.90885742]
[1734233447537,2.57935,3877.0,3876.9,0.059791]
[1734233448044,2.57935,3877.0,3876.4,0.7637]
[1734233448346,2.57935,3877.0,3876.5,0.05980466]
[1734233449475,2.57938,3876.9,3876.5,0.05980466]
[1734233450596,2.57953,3876.7,3876.5,0.05980466]
[1734233450891,0.7678,3876.6,3875.8,1.86586724]
[1734233451061,2.57985,3876.2,3875.9,0.89304586]
[1734233451275,0.7678,3876.6,3875.6,2.14515742]
[1734233451476,2.5799,3876.2,3875.7,2.23272551]
[1734233451793,2.5799,3876.2,3875.5,1.84929018]
[1734233451994,0.7678,3876.6,3875.6,2.23214602]
[1734233452203,0.7678,3876.6,3875.7,0.89285841]
[1734233452204,2.57993,3876.1,3875.7,0.89285841]
[1734233452423,3.34773,3876.1,3875.5,1.84929018]
[1734233452567,2.58,3876.0,3875.5,0.785]
[1734233453387,2.58,3876.0,3875.3,1.06429018]
[1734233453582,2.58,3876.0,3875.4,0.89224689]
[1734233454465,2.58,3876.0,3875.3,1.06429018]
[1734233454704,2.58,3876.0,3875.4,0.89195078]
[1734233455120,2.58005,3875.9,3875.2,0.785]
[1734233455262,2.5802,3875.7,3875.2,0.785]
[1734233455572,0.7678,3875.5,3875.0,0.258064]
[1734233455763,3.34812,3875.5,3875.0,0.258064]
[1734233457832,2.58042,3875.4,3875.0,0.258064]
[1734233458931,2.58042,3875.4,3875.1,0.05874604]
[1734233459435,2.58042,3875.4,3875.2,0.05874262]
[1734233459802,2.58042,3875.4,3875.0,0.258064]
[1734233460339,2.58042,3875.4,3875.1,0.05874604]
[1734233460832,2.58042,3875.4,3875.0,0.258064]
[1734233461330,2.58042,3875.4,3875.1,0.05874604]
[1734233461499,2.58048,3875.3,3875.1,0.05874604]
[1734233461701,2.58048,3875.3,3875.0,0.258064]
[1734233461702,2.58057,3875.2,3875.0,0.258064]
[1734233462813,3.34815,3875.5,3875.0,0.258064]
[1734233463025,3.34815,3875.5,3875.1,0.05776772]
[1734233463328,3.34815,3875.5,3875.0,0.258064]
[1734233463528,2.58039,3875.4,3875.0,0.258064]
[1734233463729,2.58039,3875.4,3875.1,0.05776772]
[1734233464058,2.58039,3875.4,3875.0,0.258064]
[1734233464350,2.58039,3875.4,3875.1,0.05776772]
[1734233464858,2.58039,3875.4,3875.0,0.258064]
[1734233465058,2.58039,3875.4,3875.1,0.05776772]
[1734233465261,0.7678,3875.5,3875.0,0.258064]
[1734233465460,2.58045,3875.3,3875.1,0.05776772]
[1734233465758,2.58045,3875.3,3875.0,0.258064]
[1734233466137,2.58045,3875.3,3875.1,0.05776772]
[1734233466361,2.58045,3875.3,3875.0,0.258064]
[1734233466864,1.88139018,3875.1,3875.0,0.258064]
[1734233468567,2.39740367,3875.1,3875.0,0.258064]
[1734233470848,1.33311349,3875.1,3875.0,0.258064]
[1734233471070,0.51601349,3875.1,3875.0,0.258064]
[1734233473571,1.88139018,3875.7,3875.0,0.258064]
[1734233473782,0.52273413,3875.5,3875.0,1.14049768]
[1734233474002,3.10305413,3875.5,3875.0,1.14049768]
[1734233474176,1.58702431,3875.5,3875.0,0.31699768]
[1734233474498,2.58039,3875.4,3875.1,0.05879654]
[1734233475000,2.58045,3875.3,3875.0,0.258064]
[1734233475188,3.39762,3875.2,3875.0,0.258064]
[1734233475869,2.58052,3875.2,3875.0,0.258064]
[1734233476075,1.06429018,3875.3,3875.0,0.258064]
[1734233476388,3.64475018,3875.3,3875.0,0.258064]
[1734233476589,2.58053,3875.2,3875.0,0.258064]
[1734233477520,1.06429018,3875.1,3875.0,0.258064]
[1734233478205,2.43139018,3875.1,3875.0,0.258064]
[1734233479983,1.3671,3875.1,3875.0,0.258064]
[1734233480189,1.88139018,3875.1,3875.0,0.258064]
[1734233480421,2.37742804,3875.1,3875.0,0.258064]
[1734233481619,2.92742804,3875.1,3875.0,0.258064]
[1734233482191,2.58053,3875.2,3875.0,0.258064]
[1734233482417,0.8171,3875.1,3875.0,0.258064]
[1734233482627,1.88139018,3875.1,3875.0,0.258064]
[1734233483006,0.8171,3875.1,3875.0,0.258064]
[1734233483929,1.88139018,3875.1,3875.0,0.258064]
[1734233484086,2.37742804,3875.1,3875.0,0.258064]
[1734233485933,1.31313786,3875.1,3875.0,0.258064]
[1734233486231,0.49603786,3875.1,3875.0,0.258064]
[1734233489159,4.16736431,3875.5,3875.0,0.258064]
[1734233489355,1.58702431,3875.5,3875.0,0.258064]
[1734233489553,3.64474018,3875.3,3875.0,0.258064]
[1734233489759,1.06429018,3875.3,3875.0,0.258064]
[1734233490068,1.86459018,3875.1,3875.0,0.258064]
[1734233491281,2.41459018,3875.1,3875.0,0.258064]
[1734233491480,1.86459018,3875.1,3875.0,0.258064]
[1734233494700,6.47888036,3875.1,3873.5,0.8227]
[1734233494888,2.58113,3874.3,3873.5,0.8227]
[1734233495087,2.58113,3874.3,3873.6,0.05754345]
[1734233498303,2.58113,3874.3,3873.7,0.8227]
[1734233498608,2.58113,3874.3,3873.8,0.05753661]
[1734233498899,2.58113,3874.3,3873.7,0.8227]
[1734233499067,1.06429018,3874.6,3873.8,0.05780392]
[1734233499269,2.58099,3874.5,3873.7,0.8227]
[1734233499464,2.58099,3874.5,3873.8,0.05780392]
[1734233499888,2.58099,3874.5,3873.7,0.8227]
[1734233500068,2.58099,3874.5,3873.8,0.05780392]
[1734233500269,2.58099,3874.5,3873.7,0.8227]
[1734233500500,2.58099,3874.5,3873.8,0.05780392]
[1734233500700,0.52638098,3874.2,3873.7,0.8227]
[1734233500866,0.52638098,3874.2,3873.8,0.05780392]
[1734233501067,0.52638098,3874.2,3873.7,0.8227]
[1734233501268,0.52638098,3874.2,3873.8,0.05780392]
[1734233501516,0.52638098,3874.2,3873.7,0.8227]
[1734233501800,0.52638098,3874.2,3873.9,0.0578005]
[1734233502119,0.52638098,3874.2,3873.7,0.8227]
[1734233502501,0.52638098,3874.2,3873.8,0.05780392]
[1734233502701,0.52638098,3874.2,3873.7,0.8227]
[1734233503012,0.52638098,3874.2,3873.8,0.05780392]
[1734233503387,0.52638098,3874.2,3873.7,0.8227]
[1734233503611,0.52638098,3874.2,3873.9,0.0561867]
[1734233503811,0.52638098,3874.2,3873.8,0.0561888]
[1734233504019,0.52638098,3874.2,3873.7,0.8227]
[1734233504189,0.52638098,3874.2,3873.9,0.05618538]
[1734233504524,0.52638098,3874.2,3873.7,0.8227]
[1734233504902,0.52638098,3874.2,3873.8,0.05619012]
[1734233505097,0.52638098,3874.2,3873.7,0.8227]
[1734233505303,0.52638098,3874.2,3873.8,0.05619012]
[1734233505503,0.52638098,3874.2,3873.7,0.8227]
[1734233505717,0.52638098,3874.2,3873.8,0.05619012]
[1734233506102,0.52638098,3874.2,3873.7,0.8227]
[1734233506307,0.52638098,3874.2,3873.8,0.0561888]
[1734233506498,0.52638098,3874.2,3873.7,0.8227]
[1734233507125,0.52638098,3874.2,3873.8,0.05618482]
[1734233507493,0.52638098,3874.2,3873.7,0.8227]
[1734233507710,0.52638098,3874.2,3873.8,0.05618482]
[1734233508027,0.52638098,3874.2,3873.7,0.8227]
[1734233508400,0.52638098,3874.2,3873.8,0.0561835]
[1734233508736,0.8003,3874.9,3873.8,1.06429018]
[1734233508901,0.8003,3874.9,3873.3,1.10668107]
[1734233508902,1.89655464,3875.3,3874.2,1.06429018]
[1734233509107,2.58056,3875.2,3874.3,0.85436772]
[1734233510035,0.51900791,3874.9,3874.4,0.89341283]
[1734233510237,0.51900791,3874.9,3874.5,0.7982]
[1734233510436,0.51900791,3874.9,3874.5,0.85435956]
[1734233510635,0.51900791,3874.9,3874.5,1.15431126]
[1734233511738,0.51900791,3874.9,3874.6,0.7982]
[1734233512237,0.51900791,3874.9,3874.7,0.05615405]
[1734233512539,0.51900791,3874.9,3874.8,0.7982]
[1734233512914,0.51900791,3874.9,3874.8,0.85435063]
[1734233516345,0.51900791,3874.9,3874.8,1.04621471]
[1734233517470,0.51900791,3874.9,3874.8,0.85435063]
[1734233529807,1.85345464,3876.2,3874.9,0.7782]
[1734233530037,2.57974,3876.4,3875.8,1.06429018]
[1734233530195,0.50618474,3876.1,3875.8,1.06429018]
[1734233530521,0.50618474,3876.1,3875.7,0.7782]
[1734233530731,0.50618474,3876.1,3875.8,0.05135122]
[1734233531059,1.22856671,3876.5,3875.7,0.7782]
[1734233531186,0.7762,3876.5,3875.9,0.0513478]
[1734233531495,3.35585,3876.5,3875.7,0.7782]
[1734233531694,3.35585,3876.5,3876.0,0.05134306]
[1734233531888,3.35585,3876.5,3875.7,0.7782]
[1734233532317,3.35585,3876.5,3875.8,0.05134989]
[1734233532519,3.35585,3876.5,3875.7,0.7782]
[1734233532706,3.35585,3876.5,3875.8,0.05134989]
[1734233533039,3.35585,3876.5,3875.7,0.7782]
[1734233533040,2.57972,3876.4,3875.7,0.7782]
[1734233533206,2.57972,3876.4,3875.9,0.0513478]
[1734233533410,0.51118012,3876.2,3875.8,0.05135122]
[1734233533615,3.09105012,3876.2,3875.3,0.7782]
[1734233533926,3.09105012,3876.2,3875.9,0.0513478]
[1734233534127,3.09105012,3876.2,3875.3,0.7782]
[1734233534528,0.51118012,3876.2,3875.4,1.11565506]
[1734233534728,0.51118012,3876.2,3875.4,1.30504057]
[1734233535810,3.64459018,3875.6,3875.4,0.05136488]
[1734233536005,0.7762,3875.5,3874.8,0.7782]
[1734233536219,2.58045,3875.3,3874.8,0.7782]
[1734233536416,2.58045,3875.3,3874.9,0.05138065]
[1734233536912,2.58045,3875.3,3874.6,0.7782]
[1734233537116,0.51437887,3875.4,3874.7,0.05138881]
[1734233537756,2.58045,3875.3,3874.7,0.05138881]
[1734233538453,2.58045,3875.3,3874.7,1.11567899]
[1734233538765,2.58045,3875.3,3874.7,0.05138881]
[1734233539129,0.51437887,3875.4,3874.8,0.7782]
[1734233539329,0.51437887,3875.4,3874.9,0.05138197]
[1734233539775,2.58054,3875.2,3874.9,0.05138197]
[1734233539938,2.58054,3875.2,3874.5,0.7782]
[1734233540275,0.51437887,3875.4,3874.6,1.11568241]
[1734233540635,0.51437887,3875.4,3874.8,1.06429018]
[1734233540875,0.51437887,3875.4,3874.6,1.11568241]
[1734233541175,0.51437887,3875.4,3874.7,0.05135404]
[1734233542638,0.51437887,3875.4,3874.9,1.06429018]
[1734233542843,0.51437887,3875.4,3875.1,1.06429018]
[1734233543371,0.51437887,3875.4,3875.2,0.05133695]
[1734233544861,0.51437887,3875.4,3875.0,1.84249018]
[1734233545079,0.51437887,3875.4,3875.3,0.05133353]
[1734233545257,0.51437887,3875.4,3875.0,1.84249018]
[1734233545455,0.51437887,3875.4,3875.3,0.05133221]
[1734233545744,0.51437887,3875.4,3875.3,0.05133353]
[1734233546066,0.51437887,3875.4,3875.1,0.50318746]
[1734233546376,0.51437887,3875.4,3875.2,0.05133695]
[1734233546676,0.51437887,3875.4,3875.0,0.7782]
[1734233547179,0.51437887,3875.4,3875.1,0.05134037]
[1734233548573,0.51437887,3875.4,3875.2,1.85089018]
[1734233548774,0.51437887,3875.4,3875.2,1.90206937]
[1734233548978,0.51437887,3875.4,3875.3,0.19020694]
[1734233549297,0.51437887,3875.4,3875.3,0.24134927]
[1734233549868,0.51437887,3875.4,3875.3,0.05114233]
[1734233550264,0.51437887,3875.4,3875.2,0.7866]
[1734233550477,0.51437887,3875.4,3875.3,0.05085711]
[1734233550793,0.51437887,3875.4,3875.2,0.7866]
[1734233550975,0.51437887,3875.4,3875.3,0.05085843]
[1734233551487,0.51437887,3875.4,3875.2,0.7866]
[1734233551662,0.51437887,3875.4,3875.3,0.05085843]
[1734233552066,0.51437887,3875.4,3875.0,0.7866]
[1734233552895,0.51437887,3875.4,3875.1,0.05082472]
[1734233553592,0.64730676,3875.4,3874.7,0.7866]
[1734233553797,0.64730676,3875.4,3874.4,1.86746724]
[1734233553798,2.58073,3874.9,3874.4,1.86746724]
[1734233553986,2.58073,3874.9,3874.4,0.7866]
[1734233555182,0.8149,3875.1,3874.5,2.23444727]
[1734233555491,2.58065,3875.0,3874.4,0.7866]
[1734233555792,2.58065,3875.0,3874.5,0.89378979]
[1734233557691,2.58073,3874.9,3874.5,0.89378979]
[1734233558192,2.58073,3874.9,3874.4,0.7866]
[1734233558395,2.58079,3874.8,3874.4,0.7866]
[1734233558691,0.339569,3874.8,3874.0,1.86746724]
[1734233558891,2.58085,3874.7,3874.1,2.23466215]
[1734233559058,2.58085,3874.7,3874.2,0.89386486]
[1734233559258,2.58085,3874.7,3874.0,1.85089018]
[1734233559454,2.58085,3874.7,3874.1,2.23440813]
[1734233560055,2.58085,3874.7,3874.0,1.85089018]
[1734233560257,2.58085,3874.7,3874.1,2.23445098]
[1734233560456,2.58085,3874.7,3874.0,1.85089018]
[1734233560658,2.58085,3874.7,3874.1,0.89368409]
[1734233562172,0.8149,3875.1,3874.1,0.89368409]
[1734233562387,2.58099,3874.5,3874.1,0.89368409]
[1734233562587,2.58099,3874.5,3874.0,0.7866]
[1734233563874,2.58099,3874.5,3874.1,0.05017846]
[1734233566588,3.3669,3874.4,3874.1,0.05017846]
[1734233566786,3.3669,3874.4,3873.7,0.8316]
[1734233567027,3.3669,3874.4,3874.2,0.05017504]
[1734233567259,3.3669,3874.4,3873.7,0.8316]
[1734233567413,2.58115,3874.3,3873.7,0.8316]
[1734233568393,2.58094,3874.6,3873.8,0.02581311]
[1734233568694,2.58094,3874.6,3873.7,1.89589018]
[1734233569103,0.51366875,3874.7,3873.7,1.89589018]
[1734233569300,2.58098,3874.5,3873.7,1.89589018]
[1734233569526,2.58106,3874.4,3873.7,1.89589018]
[1734233570697,0.7858,3874.6,3873.7,0.8316]
[1734233570892,2.58119,3874.2,3873.7,0.8316]
[1734233571693,0.12994687,3874.5,3873.7,0.8316]
[1734233571694,2.58106,3874.4,3873.7,0.8316]
[1734233575512,3.09453875,3874.7,3873.8,1.06429018]
[1734233576797,0.51366875,3874.7,3873.7,0.8316]
[1734233577000,2.58099,3874.5,3873.7,0.8316]
[1734233577618,3.09450875,3874.7,3873.7,0.8316]
[1734233577919,3.09450875,3874.7,3873.8,1.2538792]
[1734233578518,3.09450875,3874.7,3873.9,0.8316]
[1734233578719,2.58093,3874.6,3873.9,0.8316]
[1734233578919,2.58093,3874.6,3874.0,0.05062787]
[1734233580659,2.58106,3874.4,3874.0,0.05062787]
[1734233581093,2.58119,3874.2,3874.0,0.05062787]
[1734233581269,0.7858,3874.4,3873.6,0.8316]
[1734233581566,2.58111,3874.3,3874.1,0.05076925]
[1734233581731,2.58138,3873.9,3873.6,0.8316]
[1734233582162,2.58138,3873.9,3873.7,0.05078293]
[1734233583235,2.58138,3873.9,3873.4,0.8316]
[1734233583566,2.58138,3873.9,3873.8,0.05077951]
[1734233583774,2.58138,3873.9,3873.0,0.8316]
[1734233583775,0.7858,3873.8,3873.0,0.8316]
[1734233583935,2.58184,3873.2,3873.0,0.8316]
[1734233584282,2.58184,3873.2,3873.1,0.04922599]
[1734233584436,2.58184,3873.2,3872.7,0.8316]
[1734233584755,2.58184,3873.2,3873.1,0.04922599]
[1734233584973,2.58184,3873.2,3872.7,0.8316]
[1734233585187,2.58184,3873.2,3873.1,0.04922599]
[1734233585482,2.58172,3873.4,3873.1,0.04922599]
[1734233585689,0.46896782,3873.7,3872.7,0.8316]
[1734233585875,2.58171,3873.4,3873.2,0.04922257]
[1734233586209,2.58184,3873.2,3872.7,0.8316]
[1734233586489,2.58195,3873.1,3872.7,0.8316]
[1734233586853,2.58199,3873.0,3872.8,0.04923625]
[1734233587082,2.58199,3873.0,3872.7,0.8316]
[1734233587269,2.5821,3872.9,3872.5,0.9270235]
[1734233588053,2.58219,3872.7,3872.5,0.1612235]
[1734233588250,3.40349,3872.7,3872.5,0.1612235]
[1734233588449,1.06429018,3872.6,3872.5,0.1612235]
[1734233588899,3.40349,3872.7,3872.5,0.1612235]
[1734233589077,0.50556894,3872.8,3872.5,0.1612235]
[1734233589295,0.50556894,3872.8,3872.7,1.06429018]
[1734233589467,0.50556894,3872.8,3872.7,0.7658]
[1734233589828,2.58161,3873.6,3872.7,0.96493137]
[1734233590265,2.58165,3873.5,3872.7,0.96493137]
[1734233590464,0.50427804,3873.4,3872.7,0.96493137]
[1734233590876,1.56856822,3873.4,3872.7,0.7658]
[1734233591079,2.58182,3873.3,3872.7,0.7658]
[1734233591971,2.58182,3873.3,3872.5,0.1612235]
[1734233593377,0.50427804,3873.4,3872.5,0.1612235]
[1734233593690,0.8213,3874.0,3872.9,0.7658]
[1734233593902,0.8213,3874.0,3873.0,0.36060636]
[1734233594234,2.58126,3874.1,3873.3,2.42657167]
[1734233594235,0.52529393,3874.1,3873.3,2.42657167]
[1734233594538,0.52529393,3874.1,3873.4,0.7658]
[1734233594674,0.52529393,3874.1,3873.4,0.81630218]
[1734233596190,2.58135,3874.0,3873.4,0.81630218]
[1734233596575,2.58139,3873.9,3873.4,0.81630218]
[1734233598681,2.58145,3873.8,3873.4,0.81630218]
[1734233599204,0.809,3874.0,3873.4,0.81630218]
[1734233599414,3.10658393,3874.1,3873.4,0.81630218]
[1734233600641,2.58134,3874.0,3873.4,0.81630218]
[1734233601050,0.809,3873.9,3873.4,0.05050218]
[1734233601351,2.58169,3873.5,3872.6,0.826]
[1734233601715,2.58169,3873.5,3872.7,0.05025375]
[1734233601919,0.809,3873.9,3872.7,0.05025375]
[1734233602120,2.58178,3873.3,3872.7,0.05025375]
[1734233604255,2.58185,3873.2,3872.7,0.05025375]
[1734233606442,1.32443863,3873.3,3872.7,0.05025375]
[1734233606668,1.32443863,3873.3,3872.0,1.08086724]
[1734233606669,2.58204,3872.9,3872.3,0.8081]
[1734233606868,2.58204,3872.9,3872.8,0.05033721]
[1734233607169,2.58204,3872.9,3872.3,0.8081]
[1734233607533,2.58204,3872.9,3872.6,0.05034406]
[1734233607933,2.58217,3872.8,3872.6,0.05034406]
[1734233608566,2.58222,3872.7,3872.3,0.8081]
[1734233608994,3.35632,3872.7,3872.0,0.8081]
[1734233611449,3.35632,3872.7,3871.8,0.8081]
[1734233614078,0.50762468,3872.6,3871.8,0.8081]
[1734233615363,1.28172468,3872.6,3871.4,0.8081]
[1734233615564,1.8457378,3872.6,3871.4,0.8081]
[1734233618450,2.3957378,3872.6,3871.4,0.8081]
[1734233619562,0.7609,3872.5,3871.0,0.8247]
[1734233619759,2.58288,3871.7,3871.0,0.8247]
[1734233620000,2.58288,3871.7,3871.1,0.04910784]
[1734233620471,2.58273,3871.9,3871.1,0.04910784]
[1734233620801,2.841003,3871.9,3871.1,0.04910784]
[1734233621165,2.58305,3871.4,3871.1,0.04910784]
[1734233621496,0.7609,3871.8,3871.0,0.8247]
[1734233621497,3.34373,3871.8,3871.0,0.8247]
[1734233621672,2.58283,3871.8,3871.0,0.8247]
[1734233622085,2.58283,3871.8,3871.1,0.04970947]
[1734233622261,2.58293,3871.6,3871.1,0.04970947]
[1734233622599,2.58293,3871.6,3871.0,0.8247]
[1734233623136,2.58293,3871.6,3871.1,0.04970947]
[1734233623266,0.51184324,3871.7,3871.0,0.8247]
[1734233623667,0.51184324,3871.7,3871.1,0.04970947]
[1734233624318,0.50873718,3871.7,3871.1,0.04970947]
[1734233625915,0.50873718,3871.7,3871.0,0.8247]
[1734233626322,0.7703,3871.6,3871.0,0.8247]
[1734233626535,0.7703,3871.6,3871.1,0.05007033]
[1734233626692,3.09161718,3871.7,3871.1,0.05007033]
[1734233633014,3.09161718,3871.7,3871.2,0.8184]
[1734233633015,0.50873718,3871.7,3871.2,0.8184]
[1734233633377,0.50873718,3871.7,3871.3,0.04864224]
[1734233633781,0.50873718,3871.7,3871.2,0.8184]
[1734233634223,0.50873718,3871.7,3871.3,0.04864224]
[1734233634517,0.50873718,3871.7,3871.2,0.8184]
[1734233634924,0.50873718,3871.7,3871.3,0.04864224]
[1734233635255,3.09158718,3871.7,3871.2,0.8184]
[1734233637561,2.58298,3871.5,3871.2,0.8184]
[1734233637855,2.58312,3871.3,3870.9,0.8184]
[1734233638005,1.06741429,3871.2,3870.9,0.8184]
[1734233638201,3.65060429,3871.2,3870.9,0.8184]
[1734233639714,2.58319,3871.2,3870.9,0.8184]
[1734233641112,2.58306,3871.4,3870.9,0.8184]
[1734233641709,2.58312,3871.3,3870.9,0.8184]
[1734233641963,1.83771429,3871.6,3870.9,0.8184]
[1734233642261,2.58318,3871.2,3870.9,0.8184]
[1734233647354,3.09158718,3871.7,3871.1,0.7627]
[1734233647575,0.7695,3872.0,3871.1,0.7627]
[1734233647576,2.58293,3871.6,3871.1,0.7627]
[1734233647772,2.58293,3871.6,3871.2,0.0471991]
[1734233648055,2.58293,3871.6,3871.1,0.7627]
[1734233648436,2.58293,3871.6,3871.2,0.04729762]
[1734233648766,2.58293,3871.6,3871.1,0.7627]
[1734233648954,2.58293,3871.6,3871.3,0.0472942]
[1734233649133,2.58293,3871.6,3871.1,0.7627]
[1734233649331,2.58293,3871.6,3871.4,0.04729077]
[1734233649559,2.58293,3871.6,3871.1,0.7627]
[1734233650055,0.50431323,3871.8,3871.1,0.90147]
[1734233650257,0.50431323,3871.8,3871.3,0.7627]
[1734233650762,0.50431323,3871.8,3871.4,0.04718064]
[1734233652946,3.08709323,3871.8,3871.4,0.04718064]
[1734233655187,0.51776007,3872.5,3871.7,0.7627]
[1734233655391,0.51776007,3872.5,3872.2,0.7627]
[1734233655756,0.51776007,3872.5,3872.3,0.04712665]
[1734233655954,2.58198,3873.0,3872.3,0.04712665]
[1734233657179,2.58205,3872.9,3872.3,0.04712665]
[1734233659254,0.51357667,3872.6,3872.3,0.04712665]
[1734233659686,0.51357667,3872.6,3872.3,1.11454094]
[1734233659993,0.51357667,3872.6,3872.4,0.7587]
[1734233660403,0.51357667,3872.6,3872.5,0.04614045]
[1734233660793,0.51357667,3872.6,3872.5,0.23336592]
[1734233660994,0.51357667,3872.6,3872.5,1.30078021]
[1734233661704,0.51357667,3872.6,3872.5,0.23336592]
[1734233666321,0.51357667,3872.6,3872.5,1.30078021]
[1734233666636,3.36706,3874.1,3872.6,3.41451]
[1734233666782,3.36706,3874.1,3873.1,1.06741429]
[1734233666783,2.58133,3874.0,3873.1,1.06741429]
[1734233667114,2.58153,3873.7,3873.2,0.8782427]
[1734233669825,0.50980898,3873.3,3873.2,0.8782427]
[1734233672953,2.58141,3873.9,3873.2,0.8782427]
[1734233673533,0.7858,3874.1,3873.2,0.8323]
[1734233673771,2.58145,3873.8,3873.2,0.8323]
[1734233673975,0.52075374,3873.5,3873.2,0.8323]
[1734233674263,0.52075374,3873.5,3873.3,0.04546045]
[1734233674487,0.52075374,3873.5,3873.2,0.8323]
[1734233674689,0.52075374,3873.5,3873.3,0.04546045]
[1734233674890,0.52075374,3873.5,3873.2,0.8323]
[1734233675201,0.52075374,3873.5,3873.4,0.04545703]
[1734233675403,0.52075374,3873.5,3873.3,0.04546045]
[1734233675600,0.52075374,3873.5,3873.4,0.04545703]
[1734233676321,0.52075374,3873.5,3873.3,1.06741429]
[1734233676630,2.58123,3874.2,3873.4,0.23542846]
[1734233677406,3.36741,3873.6,3873.4,0.04545703]
[1734233677832,3.36741,3873.6,3872.9,0.8323]
[1734233677833,2.58177,3873.4,3872.9,0.8323]
[1734233678006,0.7858,3873.6,3872.6,0.8323]
[1734233678165,2.58197,3873.1,3872.6,0.8323]
[1734233678369,2.58197,3873.1,3872.7,0.04521455]
[1734233678678,0.7858,3873.6,3872.7,0.04521455]
[1734233678901,2.58199,3873.0,3872.7,0.04521455]
[1734233680772,2.81823143,3873.5,3872.3,0.8323]
[1734233680773,2.58214,3872.8,3872.3,0.8323]
[1734233681104,0.7858,3872.9,3872.1,1.89971429]
[1734233681305,2.58228,3872.6,3872.1,1.89971429]
[1734233681504,2.58228,3872.6,3872.2,0.04538226]
[1734233681671,2.58228,3872.6,3872.1,1.89971429]
[1734233682289,0.7858,3872.9,3872.1,1.89971429]
[1734233682495,2.58234,3872.5,3872.1,1.89971429]
[1734233685488,2.58253,3872.2,3871.5,1.06741429]
[1734233685698,3.36791,3872.8,3871.5,1.06741429]
[1734233685699,2.58265,3872.0,3871.6,0.04540015]
[1734233685985,2.58265,3872.0,3871.5,1.06741429]
[1734233686720,2.58253,3872.2,3871.5,1.06741429]
[1734233687086,0.7858,3872.3,3871.6,0.04540147]
[1734233687292,0.7858,3872.3,3871.5,1.06741429]
[1734233687293,2.58259,3872.1,3871.5,1.06741429]
[1734233687595,2.58259,3872.1,3871.6,0.8652028]
[1734233691112,0.7858,3872.3,3871.7,1.06741429]
[1734233691362,2.5824,3872.4,3871.7,1.06741429]
[1734233691363,2.5824,3872.4,3871.7,1.1133293]
[1734233691514,2.5824,3872.4,3871.7,1.30664223]
[1734233692524,3.10908797,3872.3,3871.7,1.30664223]
[1734233692730,3.10908797,3872.3,3871.7,1.1133293]
[1734233694048,0.52660797,3872.3,3871.9,1.06741429]
[1734233694251,0.52660797,3872.3,3872.0,0.8198]
[1734233694456,0.52660797,3872.3,3872.0,0.86637673]